[Event "Chess Super League 2021"]
[Site "Online"]
[Date "2021.10.11"]
[Round "1.3"]
[White "Dzagnidze, Nana"]
[Black "Kosteniuk, Alexandra"]
[Result "0-1"]
[ECO "A07"]
[WhiteElo "2524"]
[BlackElo "2518"]
[Annotator "ChessBase"]
[PlyCount "126"]
[EventDate "2021.10.11"]
[EventType "team-tourn"]
[EventCountry "NET"]
[SourceTitle "playchess.com"]
[Source "ChessBase"]
[SourceQuality "1"]
[TimeControl "900+10"]

1. Nf3 {[%emt 0:00:12]} d5 {[%emt 0:00:13]} 2. g3 {[%emt 0:00:03]} c6 {[%emt 0:00:03]} 3. Bg2 {[%emt 0:00:08]} Bg4 {[%emt 0:00:02]} 4. O-O {[%emt 0:00:17]} Nd7 {[%emt 0:00:07]} 5. h3 {[%emt 0:00:01]} Bh5 {[%emt 0:00:35]} 6. d4 {[%emt 0:00:06]} e6 {[%emt 0:00:08]} 7. c4 {[%emt 0:00:48]} Ngf6 {[%emt 0:00:05]} 8. cxd5 {[%emt 0:00:54]} exd5 {[%emt 0:00:03]} 9. Qb3 {[%emt 0:00:02]} Qb6 {[%emt 0:00:03]} 10. Qe3+ {[%emt 0:00:03]} Be7 {[%emt 0:00:01]} 11. Nh4 {[%emt 0:00:08]} Bg6 {[%emt 0:00:03]} 12. Nc3 {[%emt 0:00:29]} Nf8 {[%emt 0:00:03]} 13. f4 {[%emt 0:01:24]} Bc2 {[%emt 0:00:02]} 14. f5 {[%emt 0:01:18]} N8d7 {[%emt 0:01:23]} 15. g4 {[%emt 0:01:03]} h6 {[%emt 0:00:52]} 16. b3 {[%emt 0:01:21]} O-O {[%emt 0:00:39]} 17. Qd2 {[%emt 0:01:34]} Ne4 {[%emt 0:00:40]} 18. Nxe4 {[%emt 0:01:43]} Bxe4 {[%emt 0:00:02]} 19. Nf3 {[%emt 0:00:01]} Bb4 {[%emt 0:01:41]} 20. Qb2 {[%emt 0:00:03]} Rfe8 {[%emt 0:00:09]} 21. Bf4 {[%emt 0:00:39]} Qa5 {[%emt 0:00:26]} 22. Rad1 {[%emt 0:00:12]} Ba3 {[%emt 0:00:46]} 23. Qd2 {[%emt 0:00:08]} Qxd2 {[%emt 0:00:11]} 24. Rxd2 {[%emt 0:00:27]} Bb4 {[%emt 0:00:02]} 25. Rdd1 {[%emt 0:00:01]} Bc2 {[%emt 0:00:02]} 26. Rc1 {[%emt 0:00:01]} Rxe2 {[%emt 0:00:17]} 27. Rf2 {[%emt 0:00:02]} Rxf2 {[%emt 0:00:08]} 28. Kxf2 {[%emt 0:00:00]} Be4 {[%emt 0:00:05]} 29. Ne5 {[%emt 0:00:03]} Nf6 {[%emt 0:00:35]} 30. Bf1 {[%emt 0:00:04]} Ba3 {[%emt 0:00:13]} 31. Re1 {[%emt 0:00:21]} Bb2 {[%emt 0:00:11]} 32. Be3 {[%emt 0:00:06]} c5 {[%emt 0:00:12]} 33. Nf3 {[%emt 0:00:10]} Bxf3 {[%emt 0:00:49]} 34. Kxf3 {[%emt 0:00:00]} cxd4 {[%emt 0:00:13]} 35. Bf4 {[%emt 0:01:02]} Ne4 {[%emt 0:01:11]} 36. Bd3 {[%emt 0:00:38]} Nc5 {[%emt 0:00:08]} 37. Bf1 {[%emt 0:00:01]} Ne4 {[%emt 0:00:37]} 38. Bd3 {[%emt 0:00:04]} Bc3 {[%emt 0:00:01]} 39. Re2 {[%emt 0:00:57]} Nc5 {[%emt 0:00:07]} 40. Bb1 {[%emt 0:00:02]} d3 {[%emt 0:01:17]} 41. Re7 {[%emt 0:00:05]} b6 {[%emt 0:00:03]} 42. Be3 {[%emt 0:01:35]} Bf6 {[%emt 0:01:35]} 43. Rc7 {[%emt 0:01:24]} Re8 {[%emt 0:00:35]} 44. b4 {[%emt 0:01:52]} d4 {[%emt 0:00:59]} 45. Bf4 {[%emt 0:00:08]} Na6 {[%emt 0:01:21]} 46. Rc1 {[%emt 0:00:26]} Nxb4 {[%emt 0:00:14]} 47. Rd1 {[%emt 0:00:07]} Bg5 {[%emt 0:00:41]} 48. a3 {[%emt 0:00:38]} Nc2 {[%emt 0:00:12]} 49. Kg3 {[%emt 0:00:01]} Bxf4+ {[%emt 0:00:21]} 50. Kxf4 {[%emt 0:00:01]} Re3 {[%emt 0:00:12]} 51. h4 {[%emt 0:00:01]} Kf8 {[%emt 0:00:15]} 52. g5 {[%emt 0:00:02]} hxg5+ {[%emt 0:00:03]} 53. hxg5 {[%emt 0:00:01]} Ke7 {[%emt 0:00:04]} 54. Rd2 {[%emt 0:00:04]} Ne1 {[%emt 0:00:55]} 55. Rd1 {[%emt 0:00:18]} f6 {[%emt 0:00:08]} 56. g6 {[%emt 0:00:08]} Kd6 {[%emt 0:00:05]} 57. Ba2 {[%emt 0:00:18]} Ng2+ {[%emt 0:00:28]} 58. Kg4 {[%emt 0:00:01]} Ke5 {[%emt 0:00:11]} 59. Bc4 {[%emt 0:00:07]} Ne1 {[%emt 0:00:09]} 60. Rd2 {[%emt 0:00:08]} Re2 {[%emt 0:00:43]} 61. Rxe2+ {[%emt 0:00:07]} dxe2 {[%emt 0:00:01]} 62. Bxe2 {[%emt 0:00:00]} d3 {[%emt 0:00:04]} 63. Bd1 {[%emt 0:00:01]} Ke4 {[%emt 0:00:11]} 0-1

[Event "Chess Super League 2021"]
[Site "Online"]
[Date "2021.10.11"]
[Round "1.3"]
[White "Karavade, Eesha"]
[Black "Soumya, Swaminathan"]
[Result "1-0"]
[ECO "E92"]
[WhiteElo "2345"]
[BlackElo "2351"]
[Annotator "ChessBase"]
[PlyCount "67"]
[EventDate "2021.10.11"]
[EventType "team-tourn"]
[EventCountry "NET"]
[SourceTitle "playchess.com"]
[Source "ChessBase"]
[SourceQuality "1"]
[TimeControl "900+10"]

1. d4 {[%emt 0:00:11]} Nf6 {[%emt 0:00:15]} 2. c4 {[%emt 0:00:02]} g6 {[%emt 0:00:06]} 3. Nc3 {[%emt 0:00:02]} Bg7 {[%emt 0:00:01]} 4. e4 {[%emt 0:00:02]} d6 {[%emt 0:00:01]} 5. Nf3 {[%emt 0:00:01]} O-O {[%emt 0:00:02]} 6. Be2 {[%emt 0:00:02]} e5 {[%emt 0:00:03]} 7. Be3 {[%emt 0:00:02]} exd4 {[%emt 0:00:23]} 8. Nxd4 {[%emt 0:00:04]} Re8 {[%emt 0:00:02]} 9. f3 {[%emt 0:00:03]} c6 {[%emt 0:00:04]} 10. Bf2 {[%emt 0:00:03]} d5 {[%emt 0:00:04]} 11. exd5 {[%emt 0:00:02]} cxd5 {[%emt 0:00:31]} 12. O-O {[%emt 0:00:02]} Nc6 {[%emt 0:00:23]} 13. c5 {[%emt 0:00:05]} Nh5 {[%emt 0:00:06]} 14. Qd2 {[%emt 0:00:02]} Be5 {[%emt 0:00:03]} 15. g3 {[%emt 0:00:01]} Ng7 {[%emt 0:00:24]} 16. Rfd1 {[%emt 0:00:53]} Bf5 {[%emt 0:00:56]} 17. Bb5 {[%emt 0:02:54]} Bxd4 {[%emt 0:03:08]} 18. Bxd4 {[%emt 0:00:04]} Ne6 {[%emt 0:00:05]} 19. Bf2 {[%emt 0:01:29]} Ng5 {[%emt 0:02:20]} 20. Qxd5 {[%emt 0:01:11]} Qf6 {[%emt 0:03:38]} 21. h4 {[%emt 0:04:21]} Nh3+ {[%emt 0:01:53]} 22. Kg2 {[%emt 0:00:03]} Rad8 {[%emt 0:00:36]} 23. Qc4 {[%emt 0:00:21]} Ne5 {[%emt 0:02:26]} 24. Rxd8 {[%emt 0:00:04]} Rxd8 {[%emt 0:00:57]} 25. Qe2 {[%emt 0:00:04]} Nxf2 {[%emt 0:00:18]} 26. Qxf2 {[%emt 0:00:24]} a6 {[%emt 0:00:25]} 27. Bf1 {[%emt 0:00:42]} Nd3 {[%emt 0:00:04]} 28. Bxd3 {[%emt 0:00:14]} Rxd3 {[%emt 0:00:04]} 29. Rd1 {[%emt 0:00:14]} Rxd1 {[%emt 0:00:18]} 30. Nxd1 {[%emt 0:00:02]} Be6 {[%emt 0:00:02]} 31. Nc3 {[%emt 0:00:05]} Qf5 {[%emt 0:00:02]} 32. Ne4 {[%emt 0:00:53]} Bxa2 {[%emt 0:00:19]} 33. Qd4 {[%emt 0:00:12]} Be6 {[%emt 0:00:24]} 34. g4 {[%emt 0:00:17]} 1-0

[Event "Chess Super League 2021"]
[Site "Online"]
[Date "2021.10.11"]
[Round "1.3"]
[White "Tarini Goyal"]
[Black "Arpita, Mukherjee"]
[Result "1/2-1/2"]
[ECO "D02"]
[WhiteElo "2164"]
[BlackElo "2229"]
[Annotator "ChessBase"]
[PlyCount "100"]
[EventDate "2021.10.11"]
[EventType "team-tourn"]
[EventCountry "NET"]
[SourceTitle "playchess.com"]
[Source "ChessBase"]
[SourceQuality "1"]
[TimeControl "900+10"]

1. d4 {[%emt 0:00:13]} Nf6 {[%emt 0:00:15]} 2. Nf3 {[%emt 0:00:01]} c5 {[%emt 0:00:06]} 3. g3 {[%emt 0:00:07]} cxd4 {[%emt 0:00:18]} 4. Nxd4 {[%emt 0:00:03]} e5 {[%emt 0:00:16]} 5. Nb3 {[%emt 0:01:04]} d5 {[%emt 0:00:07]} 6. Bg2 {[%emt 0:00:03]} Be7 {[%emt 0:00:11]} 7. O-O {[%emt 0:00:04]} h6 {[%emt 0:00:17]} 8. c4 {[%emt 0:00:40]} d4 {[%emt 0:00:59]} 9. e3 {[%emt 0:01:55]} d3 {[%emt 0:02:08]} 10. Nc3 {[%emt 0:00:15]} Bg4 {[%emt 0:00:30]} 11. Qd2 {[%emt 0:02:49]} Nc6 {[%emt 0:00:03]} 12. e4 {[%emt 0:02:44]} Bb4 {[%emt 0:01:51]} 13. a3 {[%emt 0:00:28]} Bxc3 {[%emt 0:00:02]} 14. Qxc3 {[%emt 0:00:52]} Be2 {[%emt 0:00:07]} 15. Re1 {[%emt 0:00:03]} Rc8 {[%emt 0:00:40]} 16. h3 {[%emt 0:00:51]} O-O {[%emt 0:03:41]} 17. Be3 {[%emt 0:00:11]} a5 {[%emt 0:00:31]} 18. Qd2 {[%emt 0:02:37]} a4 {[%emt 0:00:39]} 19. Nc1 {[%emt 0:01:19]} Na5 {[%emt 0:00:02]} 20. c5 {[%emt 0:00:24]} Nc4 {[%emt 0:00:22]} 21. Qc3 {[%emt 0:00:05]} Nxe3 {[%emt 0:00:17]} 22. fxe3 {[%emt 0:00:44]} d2 {[%emt 0:00:02]} 23. Nxe2 {[%emt 0:00:01]} dxe1=Q+ {[%emt 0:00:01]} 24. Rxe1 {[%emt 0:00:01]} Qe7 {[%emt 0:00:14]} 25. Rc1 {[%emt 0:00:03]} Nd7 {[%emt 0:00:03]} 26. Qb4 {[%emt 0:00:09]} Rxc5 {[%emt 0:00:08]} 27. Rd1 {[%emt 0:00:04]} Nf6 {[%emt 0:01:06]} 28. Nc3 {[%emt 0:00:07]} Qc7 {[%emt 0:00:20]} 29. Qxa4 {[%emt 0:00:26]} Rd8 {[%emt 0:00:19]} 30. Rxd8+ {[%emt 0:00:13]} Qxd8 {[%emt 0:00:00]} 31. Kh2 {[%emt 0:00:35]} Kh7 {[%emt 0:00:38]} 32. Qb4 {[%emt 0:00:07]} Rc7 {[%emt 0:00:06]} 33. Nd5 {[%emt 0:00:02]} Rc2 {[%emt 0:01:37]} 34. Qxb7 {[%emt 0:00:21]} Nxd5 {[%emt 0:00:02]} 35. exd5 {[%emt 0:00:04]} Qf6 {[%emt 0:00:04]} 36. d6 {[%emt 0:00:26]} Qxd6 {[%emt 0:01:01]} 37. b4 {[%emt 0:00:24]} Qf6 {[%emt 0:01:18]} 38. g4 {[%emt 0:00:20]} g6 {[%emt 0:00:15]} 39. Qe4 {[%emt 0:00:08]} Qf2 {[%emt 0:00:06]} 40. a4 {[%emt 0:00:04]} Rc3 {[%emt 0:00:20]} 41. Qf3 {[%emt 0:00:04]} Qa2 {[%emt 0:00:12]} 42. a5 {[%emt 0:00:05]} Kg7 {[%emt 0:00:04]} 43. Qe4 {[%emt 0:00:07]} Qe6 {[%emt 0:00:25]} 44. b5 {[%emt 0:00:02]} Rc5 {[%emt 0:00:06]} 45. a6 {[%emt 0:00:04]} Qb6 {[%emt 0:00:04]} 46. Qb7 {[%emt 0:00:06]} Qd6 {[%emt 0:00:17]} 47. Qe4 {[%emt 0:00:15]} Qc7 {[%emt 0:00:22]} 48. Qb7 {[%emt 0:00:03]} Qd6 {[%emt 0:00:03]} 49. Qe4 {[%emt 0:00:12]} Qb6 {[%emt 0:00:20]} 50. Qb7 {[%emt 0:00:12]} Qd6 {[%emt 0:00:02]} 1/2-1/2

[Event "Chess Super League 2021"]
[Site "Online"]
[Date "2021.10.12"]
[Round "2.1"]
[White "Karavade, Eesha"]
[Black "Tania, Sachdev"]
[Result "1/2-1/2"]
[ECO "E18"]
[WhiteElo "2345"]
[BlackElo "2392"]
[Annotator "NA"]
[PlyCount "64"]
[EventDate "2021.10.11"]
[EventType "team-tourn"]
[EventCountry "NET"]
[SourceTitle "playchess.com"]
[Source "ChessBase"]
[SourceQuality "1"]
[TimeControl "900+10"]

1. d4 {[%emt 0:00:10]} Nf6 {[%emt 0:00:12]} 2. c4 {[%emt 0:00:02]} e6 {[%emt 0:00:03]} 3. Nf3 {[%emt 0:00:02]} b6 {[%emt 0:00:42]} 4. g3 {[%emt 0:00:20]} Bb7 {[%emt 0:00:01]} 5. Bg2 {[%emt 0:00:02]} Be7 {[%emt 0:00:01]} 6. O-O {[%emt 0:00:04]} O-O {[%emt 0:00:04]} 7. Nc3 {[%emt 0:00:04]} Ne4 {[%emt 0:00:13]} 8. Bd2 {[%emt 0:00:27]} f5 {[%emt 0:00:07]} 9. Ne5 {[%emt 0:00:16]} Nxc3 {[%emt 0:00:32]} 10. Bxc3 {[%emt 0:00:02]} Bxg2 {[%emt 0:00:10]} 11. Kxg2 {[%emt 0:00:02]} d6 {[%emt 0:00:40]} 12. Nd3 {[%emt 0:00:39]} Bf6 {[%emt 0:00:30]} 13. Re1 {[%emt 0:03:23]} Qd7 {[%emt 0:02:48]} 14. Nf4 {[%emt 0:01:52]} Nc6 {[%emt 0:04:55]} 15. Nh5 $11 {[%emt 0:02:43]} d5 {[%emt 0:00:58]} 16. Qd3 {[%emt 0:00:45]} dxc4 {[%emt 0:01:23]} 17. Qxc4 {[%emt 0:00:56]} Qd5+ {[%emt 0:00:02]} 18. Qxd5 {[%emt 0:00:03]} exd5 {[%emt 0:00:00]} 19. Nxf6+ {[%emt 0:00:02]} Rxf6 {[%emt 0:00:03]} 20. Rac1 {[%emt 0:00:01]} Rf7 {[%emt 0:00:23]} 21. e3 {[%emt 0:00:27]} a5 {[%emt 0:00:51]} 22. Re2 {[%emt 0:01:00]} g5 {[%emt 0:00:56]} 23. Be1 {[%emt 0:00:39]} Nd8 {[%emt 0:00:11]} 24. Rec2 {[%emt 0:00:34]} Ne6 {[%emt 0:00:12]} 25. f4 {[%emt 0:00:29]} g4 {[%emt 0:00:16]} 26. Rc6 {[%emt 0:00:12]} Re8 {[%emt 0:00:05]} 27. Bf2 {[%emt 0:00:19]} Ree7 {[%emt 0:00:15]} 28. b3 {[%emt 0:00:10]} Nd8 {[%emt 0:00:03]} 29. R6c2 {[%emt 0:00:13]} Nb7 {[%emt 0:00:10]} 30. Rc6 {[%emt 0:00:16]} Nd8 {[%emt 0:00:04]} 31. R6c2 {[%emt 0:00:02]} Nb7 {[%emt 0:00:01]} 32. Rc6 {[%emt 0:00:02]} Nd8 {[%emt 0:00:05]} 1/2-1/2

[Event "Chess Super League 2021"]
[Site "Online"]
[Date "2021.10.12"]
[Round "2.1"]
[White "Tarini Goyal"]
[Black "Priyanka, K."]
[Result "0-1"]
[ECO "E62"]
[WhiteElo "2164"]
[BlackElo "2218"]
[Annotator "NA"]
[PlyCount "98"]
[EventDate "2021.10.11"]
[EventType "team-tourn"]
[EventCountry "NET"]
[SourceTitle "playchess.com"]
[Source "ChessBase"]
[SourceQuality "1"]
[TimeControl "900+10"]

1. d4 {[%emt 0:00:14]} Nf6 {[%emt 0:00:12]} 2. c4 {[%emt 0:00:02]} g6 {[%emt 0:00:02]} 3. g3 {[%emt 0:00:02]} Bg7 {[%emt 0:00:01]} 4. Bg2 {[%emt 0:00:01]} d6 {[%emt 0:00:01]} 5. Nc3 {[%emt 0:00:05]} O-O {[%emt 0:00:02]} 6. Nf3 {[%emt 0:00:03]} c6 {[%emt 0:00:05]} 7. O-O {[%emt 0:00:03]} Bf5 {[%emt 0:00:02]} 8. Re1 {[%emt 0:00:25] 8.Ne1 is setting a new trend.} d5 {[%emt 0:01:15]} 9. Qb3 {[%emt 0:03:26]} Qb6 {[%emt 0:00:44]} 10. cxd5 {[%emt 0:00:48]} cxd5 {[%emt 0:00:30]} 11. Qxb6 {[%emt 0:03:25]} axb6 {[%emt 0:00:05] [#]} 12. Ne5 $146 {[%emt 0:00:18]} ({Predecessor:} 12. Bf4 Nc6 13. Rec1 Rfc8 14. Kf1 h6 15. Be5 e6 16. Bd6 Ne8 17. Nb5 Nxd4 18. Nfxd4 Bxd4 19. Nxd4 Nxd6 20. Rxc8+ Rxc8 {0-1 (51) Sturt,R (2429)-Nyzhnyk,I (2624) Chess.com INT 2019}) 12... Nc6 {[%emt 0:02:14]} 13. Nxc6 {[%emt 0:00:36]} bxc6 {[%emt 0:00:03]} 14. Bg5 {[%emt 0:00:47]} h6 {[%emt 0:01:43]} 15. Bxf6 {[%emt 0:00:02]} Bxf6 {[%emt 0:00:02]} 16. e3 {[%emt 0:00:01]} b5 {[%emt 0:00:42]} 17. a3 {[%emt 0:00:05]} e5 {[%emt 0:02:25]} (17... e6 $15) 18. dxe5 $15 {[%emt 0:01:53]} Bxe5 {[%emt 0:00:03]} 19. Rac1 {[%emt 0:00:06]} Rfe8 {[%emt 0:01:10]} 20. Red1 {[%emt 0:01:34]} Rab8 {[%emt 0:00:43]} 21. Rd2 {[%emt 0:00:42]} b4 {[%emt 0:01:42]} 22. Ne2 {[%emt 0:00:32]} bxa3 {[%emt 0:00:38]} 23. bxa3 {[%emt 0:00:02]} Rb1 {[%emt 0:00:25]} 24. Rxb1 {[%emt 0:01:18]} Bxb1 {[%emt 0:00:00]} 25. Nd4 {[%emt 0:00:51]} Bxd4 {[%emt 0:02:12]} 26. Rxd4 {[%emt 0:00:13]} Ra8 {[%emt 0:00:05]} 27. Rb4 {[%emt 0:00:06]} Bc2 {[%emt 0:00:11]} 28. Rb6 {[%emt 0:00:43]} Rxa3 {[%emt 0:00:06]} 29. h4 {[%emt 0:00:21]} Rc3 {[%emt 0:00:16]} 30. Rb7 {[%emt 0:00:12]} Bf5 {[%emt 0:00:13]} 31. Rc7 {[%emt 0:00:05]} Rc1+ {[%emt 0:00:08]} 32. Kh2 {[%emt 0:00:01]} Rc2 {[%emt 0:00:01]} 33. Kg1 {[%emt 0:00:07]} h5 {[%emt 0:00:05]} 34. Bf3 {[%emt 0:00:33]} Kg7 {[%emt 0:00:16]} 35. Kg2 {[%emt 0:00:06]} Kf6 {[%emt 0:00:13]} 36. Ra7 {[%emt 0:00:22]} Be6 {[%emt 0:00:20]} 37. Ra6 {[%emt 0:00:20]} Ke5 {[%emt 0:00:04]} 38. Bd1 {[%emt 0:00:05]} Rc1 {[%emt 0:00:32]} 39. Ba4 {[%emt 0:00:03]} c5 {[%emt 0:00:05]} 40. Be8 {[%emt 0:00:22]} c4 {[%emt 0:00:11]} 41. Rc6 {[%emt 0:00:16]} c3 {[%emt 0:00:12]} 42. Kf3 {[%emt 0:00:17]} Bg4+ {[%emt 0:01:18]} 43. Kg2 {[%emt 0:00:01]} Ke4 {[%emt 0:00:18]} 44. Rf6 {[%emt 0:00:21]} c2 {[%emt 0:00:12]} 45. Ba4 {[%emt 0:00:01]} Rg1+ {[%emt 0:00:07]} 46. Kxg1 {[%emt 0:00:01]} c1=Q+ {[%emt 0:00:01]} 47. Kg2 {[%emt 0:00:01]} Bh3+ {[%emt 0:00:09]} 48. Kh2 {[%emt 0:00:05]} Qf1 {[%emt 0:00:11]} 49. Rf4+ {[%emt 0:00:12]} Ke5 {[%emt 0:00:04]} 0-1

[Event "Chess Super League 2021"]
[Site "Online"]
[Date "2021.10.12"]
[Round "2.2"]
[White "Dzagnidze, Nana"]
[Black "Kulkarni Bhakti"]
[Result "1/2-1/2"]
[ECO "A18"]
[WhiteElo "2524"]
[BlackElo "2388"]
[Annotator "RC"]
[PlyCount "126"]
[EventDate "2021.10.11"]
[EventType "team-tourn"]
[EventCountry "NET"]
[SourceTitle "playchess.com"]
[Source "ChessBase"]
[SourceQuality "1"]
[TimeControl "900+10"]

1. c4 {[%emt 0:00:12]} Nf6 {[%emt 0:00:20]} 2. Nc3 {[%emt 0:00:08]} e6 {[%emt 0:00:03]} 3. e4 {[%emt 0:00:05]} d5 {[%emt 0:00:03]} 4. e5 {[%emt 0:00:05]} d4 {[%emt 0:00:02]} 5. exf6 {[%emt 0:00:02]} dxc3 {[%emt 0:00:02]} 6. bxc3 {[%emt 0:00:06]} Qxf6 {[%emt 0:00:03]} 7. Nf3 {[%emt 0:00:01]} Nc6 {[%emt 0:00:07]} 8. d4 {[%emt 0:00:06]} e5 {[%emt 0:00:08]} 9. Bg5 {[%emt 0:06:34]} Qg6 {[%emt 0:00:14]} 10. Be3 {[%emt 0:00:27]} exd4 {[%emt 0:00:25]} 11. Nxd4 {[%emt 0:00:41]} Nxd4 {[%emt 0:00:21]} 12. Qxd4 {[%emt 0:01:01]} Be7 {[%emt 0:01:21]} 13. Bd3 {[%emt 0:00:39]} Bf5 {[%emt 0:00:15]} 14. Bxf5 {[%emt 0:00:13]} Qxf5 {[%emt 0:00:02]} 15. Qd5 {[%emt 0:00:31]} Qxd5 {[%emt 0:00:55]} 16. cxd5 {[%emt 0:00:03]} Bf6 {[%emt 0:00:32]} 17. Rc1 {[%emt 0:00:30]} O-O-O {[%emt 0:00:56]} 18. c4 {[%emt 0:00:04]} Rhe8 {[%emt 0:00:07]} 19. O-O {[%emt 0:00:09]} Re4 {[%emt 0:01:43]} 20. Rfe1 {[%emt 0:00:20]} Bd4 {[%emt 0:01:06]} 21. Bg5 {[%emt 0:00:51]} Rde8 {[%emt 0:01:08]} 22. Kf1 {[%emt 0:00:34]} Kd7 {[%emt 0:00:43]} 23. Rxe4 {[%emt 0:00:32]} Rxe4 {[%emt 0:00:00]} 24. f3 {[%emt 0:00:12]} Re8 {[%emt 0:00:14]} 25. Rb1 {[%emt 0:01:15]} b6 {[%emt 0:00:24]} 26. Rd1 {[%emt 0:00:02]} Be5 {[%emt 0:00:24]} 27. g3 {[%emt 0:00:44]} a6 {[%emt 0:02:58]} 28. Kf2 {[%emt 0:00:23]} Kd6 {[%emt 0:00:15]} 29. Be3 {[%emt 0:00:08]} h5 {[%emt 0:00:13]} 30. f4 {[%emt 0:00:25]} Bf6 {[%emt 0:00:13]} 31. Kf3 {[%emt 0:00:02]} g6 {[%emt 0:00:22]} 32. a4 {[%emt 0:00:03]} a5 {[%emt 0:00:04]} 33. h3 {[%emt 0:00:18]} Bc3 {[%emt 0:00:06]} 34. Rc1 {[%emt 0:00:16]} Bb2 {[%emt 0:00:11]} 35. Rb1 {[%emt 0:00:36]} Bg7 {[%emt 0:00:03]} 36. Rb5 {[%emt 0:01:11]} Ra8 {[%emt 0:02:45]} 37. c5+ {[%emt 0:00:18]} bxc5 {[%emt 0:00:42]} 38. Rxc5 {[%emt 0:00:18]} Bb2 {[%emt 0:00:44]} 39. Rc6+ {[%emt 0:00:48]} Kxd5 {[%emt 0:00:18]} 40. Rxc7 {[%emt 0:00:02]} Ke6 {[%emt 0:00:01]} 41. Rc6+ {[%emt 0:00:13]} Kd5 {[%emt 0:00:24]} 42. Rc5+ {[%emt 0:00:02]} Kd6 {[%emt 0:00:02]} 43. Rb5 {[%emt 0:00:03]} Bc3 {[%emt 0:00:03]} 44. f5 {[%emt 0:00:04]} Rc8 {[%emt 0:00:20]} 45. fxg6 {[%emt 0:00:03]} fxg6 {[%emt 0:00:02]} 46. Rg5 {[%emt 0:00:32]} Rc4 {[%emt 0:00:55]} 47. Rxg6+ {[%emt 0:00:06]} Ke7 {[%emt 0:00:03]} 48. Rh6 {[%emt 0:00:19]} Rxa4 {[%emt 0:00:02]} 49. Rxh5 {[%emt 0:00:02]} Ra1 {[%emt 0:00:04]} 50. Rh7+ {[%emt 0:00:18]} Kf6 {[%emt 0:00:10]} 51. Ke4 {[%emt 0:00:34]} a4 {[%emt 0:00:05]} 52. Rc7 {[%emt 0:00:14]} Bb2 {[%emt 0:00:05]} 53. Rc6+ {[%emt 0:00:04]} Kf7 {[%emt 0:00:04]} 54. g4 {[%emt 0:00:13]} a3 {[%emt 0:00:01]} 55. Ra6 {[%emt 0:00:01]} Rh1 {[%emt 0:00:08]} 56. Kf5 {[%emt 0:00:18]} Rxh3 {[%emt 0:00:02]} 57. Ra7+ {[%emt 0:00:01]} Ke8 {[%emt 0:00:05]} 58. Bc5 {[%emt 0:00:05]} Rf3+ {[%emt 0:00:07]} 59. Ke6 {[%emt 0:00:01]} Rf6+ {[%emt 0:00:02]} 60. Kd5 {[%emt 0:00:02]} Rg6 {[%emt 0:00:03]} 61. Bxa3 {[%emt 0:00:31]} Bxa3 {[%emt 0:00:02]} 62. Rxa3 {[%emt 0:00:01]} Rxg4 {[%emt 0:00:01]} 63. Ke6 {[%emt 0:00:01]} Rg6+ {[%emt 0:00:02]} 1/2-1/2

[Event "Chess Super League 2021"]
[Site "Online"]
[Date "2021.10.12"]
[Round "2.2"]
[White "Abdumalik, Zhansaya"]
[Black "Soumya, Swaminathan"]
[Result "1/2-1/2"]
[ECO "B31"]
[WhiteElo "2507"]
[BlackElo "2351"]
[Annotator "ChessBase"]
[PlyCount "126"]
[EventDate "2021.10.11"]
[EventType "team-tourn"]
[EventCountry "NET"]
[SourceTitle "playchess.com"]
[Source "ChessBase"]
[SourceQuality "1"]
[TimeControl "900+10"]

1. e4 {[%emt 0:00:10]} c5 {[%emt 0:00:14]} 2. Nf3 {[%emt 0:00:03]} Nc6 {[%emt 0:00:04]} 3. Bb5 {[%emt 0:00:03]} g6 {[%emt 0:00:03]} 4. Bxc6 {[%emt 0:00:03]} dxc6 {[%emt 0:00:01]} 5. d3 {[%emt 0:00:01]} Bg7 {[%emt 0:00:03]} 6. h3 {[%emt 0:00:01]} Nf6 {[%emt 0:00:03]} 7. Nc3 {[%emt 0:00:07]} Nd7 {[%emt 0:00:09]} 8. Be3 {[%emt 0:00:02]} e5 {[%emt 0:00:03]} 9. Qd2 {[%emt 0:00:03]} h6 {[%emt 0:00:01]} 10. O-O {[%emt 0:00:04]} b6 {[%emt 0:00:04]} 11. Nh2 {[%emt 0:00:06]} Nf8 {[%emt 0:00:02]} 12. f4 {[%emt 0:00:05]} exf4 {[%emt 0:00:02]} 13. Bxf4 {[%emt 0:00:01]} Ne6 {[%emt 0:00:02]} 14. Be3 {[%emt 0:00:02]} Nd4 {[%emt 0:00:22]} 15. Kh1 {[%emt 0:00:17]} Be6 {[%emt 0:01:17]} 16. Nd1 {[%emt 0:00:06]} Qe7 {[%emt 0:04:01]} 17. c3 {[%emt 0:00:20]} Nb5 {[%emt 0:00:03]} 18. Nf2 {[%emt 0:00:54]} Nd6 {[%emt 0:01:43]} 19. a4 {[%emt 0:00:45]} a5 {[%emt 0:00:59]} 20. Nfg4 {[%emt 0:00:13]} g5 {[%emt 0:00:09]} 21. Rf3 {[%emt 0:01:21]} f5 {[%emt 0:01:13]} 22. exf5 {[%emt 0:00:09]} Nxf5 {[%emt 0:00:01]} 23. Re1 {[%emt 0:00:16]} O-O {[%emt 0:01:21]} 24. Bf2 {[%emt 0:01:11]} Qd6 {[%emt 0:00:44]} 25. Ne3 {[%emt 0:00:21]} Nxe3 {[%emt 0:01:13]} 26. Rfxe3 {[%emt 0:00:17]} Bf5 {[%emt 0:00:27]} 27. Bg3 {[%emt 0:00:25]} Qd5 {[%emt 0:00:46]} 28. Be5 {[%emt 0:00:31]} Rad8 {[%emt 0:00:57]} 29. Bc7 {[%emt 0:01:13]} Rd7 {[%emt 0:00:33]} 30. Bxb6 {[%emt 0:00:09]} c4 {[%emt 0:02:09]} 31. d4 {[%emt 0:00:32]} c5 {[%emt 0:00:10]} 32. Qe2 {[%emt 0:01:01]} cxd4 {[%emt 0:00:19]} 33. Bxd4 {[%emt 0:00:41]} Bxd4 {[%emt 0:00:04]} 34. cxd4 {[%emt 0:00:00]} Qxd4 {[%emt 0:00:09]} 35. Qh5 {[%emt 0:00:39]} Qg7 {[%emt 0:00:28]} 36. Re8 {[%emt 0:01:07]} Rxe8 {[%emt 0:00:35]} 37. Qxe8+ {[%emt 0:00:39]} Kh7 {[%emt 0:00:04]} 38. Rf1 {[%emt 0:00:15]} Bg6 {[%emt 0:00:25]} 39. Qe6 {[%emt 0:00:06]} Rf7 {[%emt 0:00:17]} 40. Nf3 {[%emt 0:00:33]} Qxb2 {[%emt 0:00:17]} 41. Qxc4 {[%emt 0:00:08]} Qg7 {[%emt 0:00:08]} 42. Qd5 {[%emt 0:00:38]} Bh5 {[%emt 0:00:09]} 43. Qe4+ {[%emt 0:00:41]} Kh8 {[%emt 0:00:10]} 44. Qa8+ {[%emt 0:00:42]} Rf8 {[%emt 0:00:06]} 45. Qxa5 {[%emt 0:00:02]} Bxf3 {[%emt 0:00:03]} 46. gxf3 {[%emt 0:00:01]} Qd4 {[%emt 0:00:18]} 47. Kg2 {[%emt 0:00:08]} h5 {[%emt 0:00:12]} 48. Qa6 {[%emt 0:00:20]} Rf6 {[%emt 0:00:11]} 49. Qc8+ {[%emt 0:00:10]} Kg7 {[%emt 0:00:03]} 50. Qc7+ {[%emt 0:01:09]} Rf7 {[%emt 0:00:09]} 51. Qg3 {[%emt 0:00:01]} Kh6 {[%emt 0:00:04]} 52. Re1 {[%emt 0:00:20]} Qxa4 {[%emt 0:00:25]} 53. Qd6+ {[%emt 0:00:59]} Kh7 {[%emt 0:00:08]} 54. Qd3+ {[%emt 0:00:10]} Kg7 {[%emt 0:00:07]} 55. Qc3+ {[%emt 0:00:42]} Kh7 {[%emt 0:00:05]} 56. Qd3+ {[%emt 0:00:20]} Kg7 {[%emt 0:00:03]} 57. Re5 {[%emt 0:00:08]} Qf4 {[%emt 0:00:16]} 58. Qd5 {[%emt 0:00:20]} Kg6 {[%emt 0:00:14]} 59. Qd3+ {[%emt 0:00:57]} Kg7 {[%emt 0:00:03]} 60. Re6 {[%emt 0:00:08]} Qf5 {[%emt 0:00:13]} 61. Qc3+ {[%emt 0:00:13]} Kh7 {[%emt 0:00:05]} 62. Re8 {[%emt 0:00:09]} Qf6 {[%emt 0:00:02]} 63. Qxf6 {[%emt 0:00:54]} Rxf6 {[%emt 0:00:01]} 1/2-1/2